bitfinex-derivatives/quotes_SOLF0:USTF0_20220101
["timestamp","ask_amount","ask_price","bid_price","bid_amount"]
[1641004622354,27.66479,172.62,172.54,6.025]
[1641004622954,27.66479,172.62,172.53,31.8423]
[1641004626261,3.0,172.61,172.53,31.8423]
[1641004626459,39.83529193,172.61,172.54,1.2100829]
[1641004626758,3.0,172.6,172.54,1.2100829]
[1641004626960,3.0,172.59,172.54,1.2100829]
[1641004627260,3.0,172.56,172.45,63.67106418]
[1641004627459,8.669,172.57,172.45,63.67106418]
[1641004628060,13.48739193,172.6,172.48,3.0]
[1641004628260,32.91096418,172.58,172.48,3.0]
[1641004628460,32.91096418,172.58,172.49,32.9202]
[1641004628661,32.91096418,172.58,172.49,66.62599]
[1641004628862,32.91096418,172.58,172.49,63.62599]
[1641004629060,43.39835611,172.6,172.49,67.83595762]
[1641004629261,43.39835611,172.6,172.49,64.83595762]
[1641004629660,3.0,172.59,172.49,64.83595762]
[1641004629860,3.0,172.59,172.5,1.20996762]
[1641004630061,13.48739193,172.6,172.5,1.20996762]
[1641004630460,10.48739193,172.6,172.5,1.20996762]
[1641004630661,43.39835611,172.6,172.53,27.66479]
[1641004630861,43.39835611,172.6,172.53,6.195]
[1641004631266,3.0,172.56,172.53,6.195]
[1641004631462,3.0,172.56,172.54,1.20996762]
[1641004631662,5.79189714,172.59,172.54,1.20996762]
[1641004632263,32.91096418,172.58,172.5,1.20996762]
[1641004632664,27.66479,172.56,172.5,1.20996762]
[1641004633666,10.48739193,172.55,172.5,1.20996762]
[1641004634267,10.48739193,172.55,172.47,30.4819]
[1641004634867,27.66479,172.56,172.48,1.20996762]
[1641004635870,32.91096418,172.59,172.48,1.20996762]
[1641004636269,30.1647,172.6,172.48,7.17989574]
[1641004636669,27.66479,172.57,172.48,34.84468574]
[1641004637974,27.66479,172.57,172.49,7.17989574]
[1641004638571,27.66479,172.57,172.48,1.20996762]
[1641004638572,10.49146939,172.56,172.48,1.20996762]
[1641004638772,10.49146939,172.56,172.48,28.87475762]
[1641004639172,27.66479,172.57,172.48,1.20996762]
[1641004639374,27.66479,172.57,172.49,7.18001265]
[1641004639972,27.66479,172.57,172.49,7.37396762]
[1641004640172,12.34644511,172.54,172.49,6.164]
[1641004640773,12.34644511,172.54,172.5,1.20996762]
[1641004641673,12.34644511,172.55,172.5,1.20996762]
[1641004643179,43.02144511,172.56,172.5,1.20996762]
[1641004644877,12.34644511,172.55,172.5,1.20996762]
[1641004646080,43.02144511,172.56,172.5,1.20996762]
[1641004646680,12.34644511,172.56,172.5,1.20996762]
[1641004647081,40.01123511,172.57,172.5,1.20996762]
[1641004648784,12.34644511,172.57,172.5,1.20996762]
[1641004648987,12.34644511,172.57,172.51,27.66479]
[1641004649186,31.4625,172.59,172.52,12.34644511]
[1641004649385,31.4625,172.59,172.52,42.51134511]
[1641004650387,43.80894511,172.59,172.53,1.20996762]
[1641004650587,43.80894511,172.59,172.53,6.63596762]
[1641004651587,31.4625,172.59,172.54,1.20996762]
[1641004653889,12.34644511,172.6,172.54,1.20996762]
[1641004654892,12.34644511,172.58,172.54,1.20996762]
[1641004655594,12.34644511,172.58,172.53,5.426]
[1641004655794,12.34644511,172.57,172.52,30.1649]
[1641004656497,12.34644511,172.56,172.52,30.1649]
[1641004657296,43.05754511,172.58,172.53,1.21005744]
[1641004657495,12.34644511,172.58,172.53,1.21005744]
[1641004658197,12.34644511,172.57,172.53,1.21005744]
[1641004660597,21.13901325,172.57,172.53,1.21005744]
[1641004660796,3.0,172.56,172.53,5.744e-05]
[1641004660997,18.13901325,172.57,172.53,5.744e-05]
[1641004661197,21.13901325,172.57,172.53,5.744e-05]
[1641004661398,27.66479,172.54,172.53,5.744e-05]
[1641004661799,27.66479,172.54,172.44,45.98143743]
[1641004661999,29.604,172.53,172.44,45.98143743]
[1641004662696,12.34795944,172.52,172.44,40.01123511]
[1641004665400,12.34795944,172.51,172.44,27.66479]
[1641004666100,12.34795944,172.5,172.44,27.66479]
[1641004668002,12.34795944,172.5,172.42,20.90644511]
[1641004668703,12.34795944,172.5,172.42,26.87686515]
[1641004669505,12.34795944,172.51,172.43,12.34644511]
[1641004669707,12.34795944,172.51,172.44,27.66479]
[1641004670707,12.34795944,172.51,172.48,4.11653128]
[1641004670908,12.34795944,172.52,172.48,4.11653128]
[1641004673814,75.4104922,172.53,172.49,4.11653128]
[1641004674112,45.8064922,172.53,172.49,4.11653128]
[1641004676912,33.45853276,172.53,172.46,5.155]
[1641004677513,27.66479,172.53,172.46,5.155]
[1641004678414,27.66479,172.53,172.45,28.16617367]
[1641004680216,27.66479,172.53,172.44,31.78132128]
[1641004680615,30.1217,172.55,172.44,31.78132128]
[1641004681215,33.1217,172.55,172.44,27.66479]
[1641004681615,30.1217,172.55,172.44,27.66479]
[1641004681915,27.66479,172.53,172.44,27.66479]
[1641004683321,3.0,172.54,172.43,30.6165]
[1641004683820,27.66479,172.53,172.44,27.66479]
[1641004685827,12.34795944,172.52,172.48,4.11653128]
[1641004686024,12.34795944,172.52,172.48,9.82853128]
[1641004687125,12.34795944,172.53,172.48,9.82853128]
[1641004687328,4.1162884,172.49,172.48,9.82853128]
[1641004688431,4.1162884,172.49,172.48,5.712]
[1641004690234,4.1162884,172.5,172.48,5.712]
[1641004690836,4.1162884,172.5,172.49,4.11616037]
[1641004691835,40.01274944,172.53,172.49,4.11616037]
[1641004692735,12.34795944,172.53,172.49,4.11616037]
[1641004693238,12.34795944,172.51,172.48,5.712]
[1641004693438,12.34795944,172.51,172.47,4.11616037]
[1641004700145,10.493812,172.52,172.48,4.11616037]
[1641004700146,12.34795944,172.52,172.48,4.11616037]
[1641004700344,12.34795944,172.52,172.48,9.58216037]
[1641004700747,40.01274944,172.53,172.49,4.11616037]
[1641004701550,40.01274944,172.53,172.49,5.32637818]
[1641004701748,12.34795944,172.53,172.49,5.32637818]
[1641004702349,40.01274944,172.53,172.49,5.32637818]
[1641004705853,40.01274944,172.53,172.48,9.58216037]
[1641004707053,12.34795944,172.52,172.48,9.58216037]
[1641004707755,12.34795944,172.51,172.48,5.466]
[1641004707955,12.34795944,172.51,172.47,4.11616037]
[1641004722769,27.66479,172.53,172.48,4.11616037]
[1641004722770,12.34795944,172.52,172.48,4.11616037]
[1641004722970,12.34795944,172.52,172.48,8.56416037]
[1641004723470,12.34795944,172.52,172.49,5.32636413]
[1641004723669,40.01274944,172.53,172.49,5.32636413]
[1641004729179,40.01274944,172.53,172.49,4.11616037]
[1641004729678,40.01274944,172.53,172.47,5.32636413]
[1641004730681,12.34795944,172.52,172.47,5.32636413]
[1641004731582,12.34795944,172.52,172.46,34.87526037]
[1641004735086,12.34795944,172.52,172.47,5.32508255]
[1641004736887,12.34795944,172.51,172.47,5.32508255]
[1641004737389,40.01274944,172.53,172.47,5.32508255]
[1641004737588,40.01274944,172.53,172.48,4.11616037]
[1641004737790,3.0,172.52,172.48,10.56416037]
[1641004737988,43.01274944,172.53,172.48,10.56416037]
[1641004738390,40.01274944,172.53,172.48,10.56416037]
[1641004738792,12.34795944,172.52,172.48,10.56416037]
[1641004739591,12.349761,172.51,172.48,6.448]
[1641004741295,27.66479,172.53,172.48,6.448]
[1641004741494,12.34895011,172.52,172.48,10.5643167]
[1641004741994,12.34895011,172.52,172.48,6.448]
[1641004742394,12.34895011,172.52,172.44,45.63923511]
[1641004742595,51.12102856,172.52,172.44,40.01123511]
[1641004742998,12.34895011,172.49,172.45,5.3271594]
[1641004743696,12.34895011,172.49,172.41,12.34644511]
[1641004743998,12.34895011,172.48,172.44,4.11720238]
[1641004744599,40.01374011,172.48,172.44,4.11720238]
[1641004744800,12.34895011,172.47,172.43,4.11722342]
[1641004745499,12.34895011,172.47,172.39,19.52837925]
[1641004746197,12.34895011,172.47,172.43,4.11721601]
[1641004746998,12.34895011,172.47,172.39,19.52837925]
[1641004747600,40.01374011,172.48,172.44,4.11703344]
[1641004748204,40.01374011,172.48,172.43,5.404]
[1641004749002,12.34895011,172.47,172.43,9.52118723]
[1641004749801,12.34895011,172.47,172.43,5.404]
[1641004750302,40.01374011,172.48,172.44,5.3271896]
[1641004750702,12.34895011,172.48,172.44,5.3271896]
[1641004751103,12.34895011,172.48,172.43,5.404]
[1641004751305,27.66479,172.47,172.43,5.404]
[1641004752103,40.01374011,172.47,172.43,9.52112038]
[1641004752708,27.66479,172.47,172.43,5.404]
[1641004752912,27.66479,172.47,172.46,4.11703544]
[1641004753509,27.66479,172.47,172.43,9.50436684]
[1641004753709,27.66479,172.47,172.43,4.10036684]
[1641004754411,27.66479,172.47,172.41,30.526]
[1641004754610,27.66479,172.47,172.42,1.20524609]
[1641004755114,5.79508577,172.49,172.42,1.20524609]
[1641004755311,5.79508577,172.49,172.43,4.10035645]
[1641004755712,45.32910633,172.52,172.43,4.10035645]
[1641004755713,27.66479,172.48,172.43,4.10035645]
[1641004756012,12.35110633,172.52,172.44,3.0]
[1641004756212,12.35110633,172.52,172.49,3.0]
[1641004756412,12.35110633,172.52,172.49,7.36]
[1641004756611,12.35110633,172.52,172.49,4.36]
[1641004757511,50.2961712,172.58,172.49,8.46212144]
[1641004757712,77.9609612,172.58,172.49,39.12691144]
[1641004757913,12.35110633,172.58,172.49,39.12691144]
[1641004758115,12.35110633,172.58,172.52,3.0]
[1641004758517,12.35110633,172.58,172.53,3.0]
[1641004758714,12.35110633,172.58,172.53,9.601]
[1641004759114,4.10167363,172.54,172.53,9.601]
[1641004759716,12.35110633,172.58,172.53,37.26579]
[1641004759916,12.35110633,172.58,172.53,38.47614972]
[1641004760715,12.35110633,172.58,172.54,5.32490265]
[1641004761619,12.35110633,172.58,172.53,37.26579]
[1641004761821,12.35110633,172.58,172.53,9.601]
[1641004762420,12.35110633,172.58,172.54,5.32490743]
[1641004762621,12.35110633,172.58,172.54,32.98969743]
[1641004762822,12.35110633,172.58,172.54,27.66479]
[1641004764125,12.35110633,172.58,172.54,31.77933792]
[1641004764626,12.35110633,172.58,172.54,27.66479]
[1641004766028,12.35110633,172.58,172.51,27.66479]
[1641004766528,12.35110633,172.56,172.52,5.32533223]
[1641004767128,43.39851679,172.6,172.51,27.66479]
[1641004767329,12.34481299,172.57,172.53,4.11493766]
[1641004768028,10.48755261,172.6,172.51,27.66479]
[1641004768228,10.48755261,172.6,172.52,1.21030918]
[1641004768931,12.34502834,172.57,172.53,4.11500945]
[1641004769531,12.34502834,172.57,172.52,1.21031697]
[1641004770232,12.34502834,172.57,172.53,4.11500238]
[1641004770631,40.00981834,172.57,172.53,4.11500238]
[1641004771132,40.00981834,172.57,172.49,12.34644511]
[1641004771332,12.34502834,172.55,172.51,5.32573669]
[1641004771831,12.34502834,172.55,172.48,30.1332]
[1641004771832,12.34502834,172.56,172.52,4.11518055]
[1641004772532,12.34502834,172.55,172.51,7.1152683]
[1641004772733,12.34502834,172.55,172.51,34.7800583]
[1641004773633,10.49012568,172.56,172.51,30.66479]
[1641004773933,12.34437888,172.58,172.54,4.11479296]
[1641004774636,12.34437888,172.58,172.53,5.32509493]
[1641004774833,12.34437888,172.57,172.53,5.32509493]
[1641004775634,10.49012568,172.6,172.52,31.1692]
[1641004776135,10.49012568,172.6,172.52,35.7162]
[1641004776336,4.11466848,172.54,172.53,5.3250167]
[1641004777939,10.49012568,172.6,172.52,4.547]
[1641004778140,12.34398961,172.58,172.52,4.547]
[1641004778841,12.34398961,172.59,172.55,31.77919849]
[1641004779342,12.34398961,172.59,172.55,27.66479]
[1641004780046,12.34398961,172.59,172.55,31.7792061]
[1641004781146,12.34398961,172.58,172.55,27.66479]
[1641004781948,27.66479,172.61,172.55,21.08131248]
[1641004784648,27.66479,172.61,172.55,25.74931248]
[1641004784848,30.4363,172.62,172.55,25.74931248]
[1641004785949,42.78028961,172.62,172.58,4.08064613]
[1641004786150,12.34398961,172.62,172.58,4.08064613]
[1641004787952,12.34398961,172.62,172.57,4.08064613]
[1641004788152,12.34398961,172.61,172.57,4.08064613]
[1641004789456,12.34398961,172.61,172.58,4.08064613]
[1641004790058,43.39589383,172.62,172.54,61.06693613]
[1641004791056,12.34238542,172.59,172.55,5.29149205]
[1641004792555,12.34238542,172.59,172.54,61.06693613]
[1641004792756,12.34238542,172.58,172.54,61.06693613]
[1641004793156,12.34238542,172.58,172.54,33.40214613]
[1641004793558,12.34238542,172.57,172.54,29.3215]
[1641004793761,12.34238542,172.57,172.54,27.66479]
[1641004794162,12.34238542,172.57,172.53,4.08064613]
[1641004794961,12.34238542,172.58,172.54,4.08064613]
[1641004795762,12.34238542,172.58,172.54,31.74543613]
[1641004796565,12.34238542,172.59,172.55,5.29146201]
[1641004797365,12.34238542,172.6,172.57,4.08064613]
[1641004798266,43.78248542,172.61,172.57,4.08064613]
[1641004802273,12.34238542,172.6,172.56,5.29146201]
[1641004804375,31.4401,172.61,172.59,4.08064613]
[1641004804575,40.00717542,172.63,172.59,4.08064613]
[1641004805075,12.34238542,172.61,172.58,6.435]
[1641004805476,12.34238542,172.61,172.58,9.435]
[1641004805875,32.91096418,172.65,172.6,27.66479]
[1641004806075,12.34062888,172.62,172.6,27.66479]
[1641004806775,32.91096418,172.66,172.6,27.66479]
[1641004806974,27.66479,172.71,172.6,30.66479]
[1641004810676,4.07823996,172.68,172.6,30.66479]
[1641004811479,27.66479,172.71,172.62,4.08064613]
[1641004811678,43.39035808,172.7,172.62,9.32164613]
[1641004812476,10.4793939,172.7,172.63,5.2916433]
[1641004812677,10.4793939,172.7,172.64,3.0]
[1641004813076,10.4793939,172.7,172.63,39.8511433]
[1641004813279,27.66479,172.71,172.66,4.08064613]
[1641004815382,30.66479,172.71,172.66,4.08064613]
[1641004815581,13.47660162,172.7,172.63,4.08064613]
[1641004815782,10.47660162,172.7,172.63,4.08064613]
[1641004816382,27.66479,172.68,172.62,4.08064613]
[1641004817284,10.47660162,172.67,172.62,4.08064613]
[1641004819889,27.66479,172.68,172.63,4.08064613]
[1641004820090,27.66479,172.68,172.63,8.67764613]
[1641004820591,27.66479,172.68,172.64,5.29240614]
[1641004822491,30.5353,172.7,172.64,5.29240614]
[1641004822691,27.66479,172.71,172.64,5.29240614]
[1641004823390,27.66479,172.71,172.64,4.08064613]
[1641004823691,10.47726583,172.7,172.63,8.67764613]
[1641004824593,10.47726583,172.7,172.64,5.29242484]
[1641004825896,10.47726583,172.7,172.65,4.08064613]
[1641004826495,10.47726583,172.7,172.64,5.29242484]
[1641004827697,10.47726583,172.7,172.64,4.08064613]
[1641004827896,10.47726583,172.7,172.63,8.67764613]
[1641004828702,43.38823001,172.71,172.63,8.67764613]
[1641004828902,71.05302001,172.71,172.63,8.67764613]
[1641004829302,38.14205583,172.71,172.65,4.08064613]
[1641004829902,10.47726583,172.7,172.64,5.29247186]
[1641004830604,10.47726583,172.7,172.65,4.08064613]
[1641004831502,27.66479,172.71,172.65,4.08064613]
[1641004831702,27.66479,172.71,172.63,36.3807]
[1641004833707,30.0311,172.72,172.63,36.3807]
[1641004834005,10.43660266,172.71,172.63,36.3807]
[1641004835006,38.10139266,172.71,172.63,36.3807]
[1641004835405,27.66479,172.71,172.63,36.3807]
[1641004836408,42.32098966,172.72,172.63,36.3807]
[1641004836909,12.28988966,172.69,172.65,4.08064613]
[1641004840513,12.28988966,172.7,172.66,4.08064613]
[1641004843318,12.28988966,172.7,172.64,3.0]
[1641004843919,12.28988966,172.7,172.66,4.11176502]
[1641004844524,12.28988966,172.7,172.66,1.21185402]
[1641004845128,12.28988966,172.7,172.66,4.11176295]
[1641004845726,12.28988966,172.7,172.64,3.0]
[1641004846425,12.28988966,172.7,172.65,4.11189632]
[1641004846626,12.28988966,172.69,172.65,5.32373685]
[1641004847327,30.0311,172.72,172.64,3.0]
[1641004847530,12.33544503,172.7,172.66,4.11181501]
[1641004847929,12.33544503,172.69,172.65,1.21184788]
[1641004848730,38.13927182,172.71,172.66,4.11182789]
[1641004849334,12.33549776,172.69,172.65,5.32367949]
[1641004849531,12.33549776,172.69,172.65,8.32367949]
[1641004849732,12.33549776,172.69,172.65,5.32367949]
[1641004849933,27.66479,172.71,172.64,8.042]
[1641004850134,27.66479,172.71,172.67,4.11169212]
[1641004850135,39.99986636,172.71,172.67,4.11169212]
[1641004850834,12.33507636,172.71,172.65,1.21185796]
[1641004851234,39.99986636,172.71,172.65,1.21185796]
[1641004852236,39.99986636,172.71,172.67,4.1117265]
[1641004852836,12.33507636,172.7,172.65,1.21161936]
[1641004853435,38.13725255,172.71,172.63,34.7837]
[1641004853635,38.13725255,172.71,172.64,3.0]
[1641004853836,38.13725255,172.71,172.64,9.005]
[1641004854135,27.66479,172.71,172.64,9.005]
[1641004854339,12.33327305,172.7,172.65,1.2116141]
[1641004854738,27.66479,172.71,172.63,34.7837]
[1641004855538,27.66479,172.71,172.64,1.21160137]
[1641004855539,12.33365487,172.7,172.64,1.21160137]
[1641004856043,12.33365487,172.69,172.63,34.7837]
[1641004856645,12.33365487,172.69,172.63,31.7837]
[1641004856846,10.47316926,172.7,172.63,34.7837]
[1641004857044,10.47316926,172.7,172.64,1.21159912]
[1641004857444,12.3337571,172.69,172.63,34.7837]
[1641004858244,12.3337571,172.69,172.64,1.21159813]
[1641004858846,12.3337571,172.69,172.63,31.7837]
[1641004859850,12.3337571,172.68,172.63,31.7837]
[1641004860550,12.3337571,172.68,172.64,1.21159005]
[1641004861150,10.47316926,172.7,172.63,31.7837]
[1641004861649,4.11208165,172.65,172.64,1.211822]
[1641004862250,10.47316926,172.7,172.63,4.245]
[1641004862452,10.47316926,172.7,172.63,34.8251]
[1641004862851,4.11201186,172.65,172.64,1.21182898]
[1641004863454,38.13795926,172.71,172.63,4.245]
[1641004863651,38.13795926,172.71,172.63,36.1213]
[1641004864252,4.11193334,172.65,172.64,1.21183683]
[1641004864753,4.1119586,172.66,172.63,4.245]
[1641004864954,4.1119586,172.66,172.62,39.95467966]
[1641004865955,4.1119586,172.66,172.62,12.28988966]
[1641004866255,30.0311,172.72,172.63,19.47456167]
[1641004866454,30.0311,172.72,172.63,26.22256167]
[1641004866654,4.11187582,172.66,172.63,19.03788966]
[1641004867655,38.13946253,172.71,172.64,1.21184302]
[1641004868057,27.66479,172.71,172.66,4.11189279]
[1641004868759,27.66479,172.71,172.64,1.21184039]
[1641004869256,27.66479,172.71,172.66,4.11194446]
[1641004869861,27.66479,172.71,172.64,1.21183542]
[1641004870558,27.66479,172.71,172.63,6.748]
[1641004870758,27.66479,172.71,172.66,4.11199474]
[1641004871261,27.66479,172.71,172.64,1.21182916]
[1641004872162,27.66479,172.71,172.66,4.1120018]
[1641004872962,10.47503806,172.7,172.65,4.11197736]
[1641004873660,10.47503806,172.7,172.63,6.748]
[1641004873861,10.47503806,172.7,172.62,27.66479]
[1641004874362,10.47503806,172.7,172.65,4.11198397]
[1641004874962,10.47503806,172.7,172.62,27.66479]
[1641004875662,10.47503806,172.7,172.65,4.11198697]
[1641004876263,10.47503806,172.7,172.64,6.3]
[1641004877062,12.33597649,172.69,172.65,5.32382311]
[1641004877576,12.33597649,172.69,172.67,3.0]
[1641004877768,12.33597649,172.69,172.67,9.774]
[1641004878367,42.36707649,172.72,172.68,5.32327162]
[1641004878567,12.33597649,172.72,172.68,5.32327162]
[1641004879067,12.33597649,172.72,172.67,6.774]
[1641004879869,12.33597649,172.72,172.69,4.11128651]
[1641004880073,12.33597649,172.73,172.69,4.11128651]
[1641004880673,12.33597649,172.73,172.69,3.0]
[1641004880872,12.33597649,172.74,172.7,4.11108165]
[1641004881673,12.33597649,172.74,172.73,27.66479]
[1641004881873,12.33597649,172.74,172.73,32.13279]
[1641004882675,12.33597649,172.76,172.73,36.24312406]
[1641004883473,43.38277767,172.8,172.73,32.13279]
[1641004884776,12.33110538,172.76,172.73,36.24315846]
[1641004885476,43.38277767,172.8,172.73,32.13279]
[1641004886376,12.33110984,172.76,172.73,27.66479]
[1641004887076,43.38277767,172.8,172.73,27.66479]
[1641004887276,43.38277767,172.8,172.73,31.77515594]
[1641004887876,12.33112127,172.76,172.73,27.66479]
[1641004890286,43.38277767,172.8,172.73,27.66479]
[1641004890984,12.33068994,172.76,172.73,27.66479]
[1641004891387,43.38277767,172.8,172.73,27.66479]
[1641004891784,12.32990344,172.77,172.73,31.77475781]
[1641004892487,10.47181349,172.8,172.73,27.66479]
[1641004893088,12.33000148,172.77,172.73,31.77479049]
[1641004893886,10.47181349,172.8,172.73,27.66479]
[1641004894587,13.47181349,172.8,172.73,27.66479]
[1641004894786,12.33008804,172.77,172.73,4.11002935]
[1641004895387,3.0,172.77,172.7,59.26779]
[1641004895587,12.33011965,172.78,172.74,4.11003988]
[1641004895789,15.33011965,172.78,172.74,4.11003988]
[1641004895987,27.66479,172.77,172.74,4.11003988]
[1641004896589,27.66479,172.77,172.71,1.21202617]
[1641004897489,27.66479,172.77,172.74,4.11016986]
[1641004897892,27.66479,172.77,172.7,43.93412127]
[1641004899089,39.99529957,172.77,172.74,4.1102184]
[1641004899589,27.66479,172.77,172.7,43.93412127]
[1641004900189,39.99550343,172.77,172.73,4.11023781]
[1641004901194,27.66479,172.77,172.7,43.93412127]
[1641004901997,27.66479,172.77,172.73,4.11026664]
[1641004902195,39.99558992,172.77,172.73,4.11026664]
[1641004902595,27.66479,172.77,172.7,31.603]
[1641004903298,39.99562468,172.77,172.73,4.11027823]
[1641004903600,12.33083468,172.77,172.73,4.11027823]
[1641004903898,12.33083468,172.77,172.7,31.603]
[1641004904099,12.33083468,172.76,172.7,31.603]
[1641004904700,32.4223,172.77,172.73,4.11026771]
[1641004905399,32.4223,172.77,172.7,31.603]
[1641004905600,44.75305451,172.77,172.7,31.603]
[1641004906400,44.75305451,172.77,172.73,4.11022223]
[1641004906900,44.75305451,172.77,172.7,31.603]
[1641004907801,44.75305451,172.77,172.73,4.11026588]
[1641004908404,44.75305451,172.77,172.7,31.603]
[1641004909008,44.75305451,172.77,172.73,4.11027725]
[1641004909603,12.33075451,172.76,172.72,1.21200216]
[1641004910304,32.4223,172.77,172.71,27.66479]
[1641004910503,44.75318264,172.77,172.74,4.11029421]
[1641004910702,12.33088264,172.77,172.74,4.11029421]
[1641004911104,12.31929621,172.78,172.73,4.10643207]
[1641004911707,12.31929621,172.78,172.71,27.66479]
[1641004911907,4.10642775,172.74,172.71,27.66479]
[1641004912908,12.31929621,172.78,172.73,4.10635513]
[1641004913711,4.10629017,172.75,172.71,27.66479]
[1641004914213,12.31929621,172.78,172.73,4.10629515]
[1641004914914,4.10630058,172.75,172.71,27.66479]
[1641004915515,12.31929621,172.78,172.71,27.66479]
[1641004915714,12.31929621,172.78,172.73,4.1062948]
[1641004916617,12.31929621,172.78,172.74,4.11017885]
[1641004917216,12.31929621,172.78,172.72,1.21201419]
[1641004918020,12.31929621,172.78,172.7,43.93412127]
[1641004918217,12.31929621,172.77,172.73,4.11015694]
[1641004918619,12.31929621,172.77,172.7,31.603]
[1641004918819,12.31929621,172.77,172.71,1.21201543]
[1641004919322,12.31929621,172.77,172.7,31.603]
[1641004919520,12.31929621,172.77,172.73,4.11010486]
[1641004920224,3.0,172.76,172.73,4.11010486]
[1641004920425,8.708,172.76,172.73,4.11010486]
[1641004920622,3.0,172.75,172.71,1.21202095]
[1641004920823,3.0,172.74,172.71,1.21202095]
[1641004921222,5.708,172.76,172.69,12.33112127]
[1641004921425,12.33269616,172.73,172.66,12.33112127]
[1641004922225,30.66479,172.74,172.66,12.33112127]
[1641004922424,12.33368886,172.72,172.65,12.33112127]
[1641004923228,41.1234466,172.74,172.65,12.33112127]
[1641004923430,10.4586566,172.73,172.64,25.16209815]
[1641004924229,12.33396501,172.72,172.65,1.21183029]
[1641004924829,12.33419099,172.71,172.65,1.21183029]
[1641004925931,27.66479,172.74,172.65,27.66479]
[1641004926132,12.33334284,172.73,172.65,39.99591127]
[1641004926832,12.33334284,172.72,172.66,1.21190674]
[1641004927531,10.47236282,172.73,172.65,27.66479]
[1641004928032,12.33387098,172.72,172.66,1.21179113]
[1641004928734,12.33387098,172.72,172.65,27.66479]
[1641004929734,27.66479,172.74,172.65,27.66479]
[1641004929934,27.66479,172.74,172.65,21.08663291]
[1641004930235,3.0,172.73,172.65,21.08663291]
[1641004932437,30.66479,172.74,172.65,21.08663291]
[1641004932637,30.66479,172.74,172.65,25.82363291]
[1641004933240,3.0,172.74,172.65,4.737]
[1641004933439,3.0,172.74,172.66,1.20578344]
[1641004933739,3.0,172.73,172.66,1.20578344]
[1641004934340,27.66479,172.73,172.66,1.20578344]
[1641004934943,30.66479,172.73,172.66,1.20578344]
[1641004935143,27.66479,172.73,172.66,1.20578344]
[1641004936242,27.66479,172.73,172.65,27.66479]
[1641004936542,30.66479,172.73,172.65,27.66479]
[1641004937143,30.66479,172.73,172.66,1.20578344]
[1641004937945,27.66479,172.73,172.66,1.20578344]
[1641004938144,27.66479,172.73,172.66,7.09178344]
[1641004938750,27.66479,172.73,172.66,5.886]
[1641004939951,30.66479,172.73,172.66,5.886]
[1641004940951,15.33387098,172.72,172.67,1.21220158]
[1641004941154,12.33387098,172.72,172.67,1.21220158]
[1641004941554,12.33387098,172.72,172.66,1.21220158]
[1641004942161,15.33387098,172.72,172.66,1.21220158]
[1641004942354,12.33387098,172.72,172.66,1.21220158]
[1641004945859,12.33387098,172.72,172.64,19.51676084]
[1641004946959,12.33387098,172.72,172.65,27.66479]
[1641004947962,42.99866098,172.73,172.66,1.21220158]
[1641004948763,15.33387098,172.73,172.66,1.21220158]
[1641004949162,12.33387098,172.73,172.66,1.21220158]
[1641004949861,31.897,172.75,172.66,19.51663579]
[1641004949862,12.33387098,172.74,172.66,19.51663579]
[1641004950064,12.33387098,172.74,172.67,31.5895]
[1641004950462,12.33387098,172.74,172.67,43.92062127]
[1641004951166,12.33387098,172.74,172.68,1.21220158]
[1641004951361,12.33387098,172.74,172.68,28.87699158]
[1641004951762,12.33387098,172.74,172.69,1.21220158]
[1641004952563,12.33387098,172.74,172.68,1.21220158]
[1641004953362,39.99866098,172.74,172.68,1.21220158]
[1641004954065,42.99866098,172.74,172.68,1.21220158]
[1641004954463,30.66479,172.74,172.68,1.21220158]
[1641004955264,27.66479,172.74,172.68,1.21220158]
[1641004955564,39.99866098,172.74,172.68,1.21220158]
[1641004956265,12.33387098,172.73,172.67,31.5895]
[1641004956766,15.33387098,172.73,172.67,31.5895]
[1641004957466,15.33387098,172.73,172.64,27.66479]
[1641004957667,15.33387098,172.73,172.65,31.2276]
[1641004959169,12.33387098,172.72,172.66,1.21032502]
[1641004959668,12.33387098,172.71,172.66,1.21032502]
[1641004962869,12.33387098,172.72,172.66,1.21032502]
[1641004970184,12.33387098,172.71,172.66,1.21032502]
[1641004977886,39.99866098,172.73,172.66,1.21032502]
[1641004978086,12.33387098,172.73,172.66,1.21032502]
[1641004978891,12.33387098,172.72,172.66,1.21032502]
[1641004980892,4.10596194,172.68,172.67,4.10596194]
[1641004981092,12.33387098,172.72,172.67,9.54896194]
[1641004981692,12.33387098,172.72,172.67,5.443]
[1641004981893,12.33387098,172.74,172.68,1.21032502]
[1641004982593,12.33387098,172.74,172.68,28.87511502]
[1641004982795,31.897,172.75,172.68,28.87511502]